fUST/lending_fUST_20251007
["ID","MTS","AMOUNT","RATE_DAILY","PERIOD"]
[389646793,1759766444801,5000.0,0.0002012,9]
[389646794,1759766462562,3934.42025944,0.0002012,9]
[389646795,1759766470769,5000.0,0.0002012,9]
[389646839,1759766666975,217.0,0.00028767,120]
[389646840,1759766689907,200.0,0.00028767,120]
[389646841,1759766699376,200.0,0.00028767,120]
[389646842,1759766711184,200.0,0.00028767,120]
[389646843,1759766845993,160.27899246,0.00024767,30]
[389646844,1759766886354,2500.12086529,0.0002012,9]
[389646845,1759766911626,1000.0,0.00025,30]
[389646866,1759766975556,-605.1334171,0.00028188,30]
[389647064,1759767037924,-1276.477096,0.00016438,2]
[389647065,1759767037935,-530.3153099,0.00017061,2]
[389647066,1759767037944,-160.0,0.00017427,2]
[389647068,1759767037954,-160.0,0.00017875,2]
[389647069,1759767037963,-160.0,0.00017875,2]
[389647070,1759767037972,-234.17717776,0.00017875,2]
[389647071,1759767037982,-160.0,0.00017875,2]
[389647072,1759767037991,-250.0,0.00018963,2]
[389647073,1759767038000,-158.60399915,0.00019077,2]
[389647074,1759767038009,-502.81412001,0.00019077,2]
[389647075,1759767038018,-500.0,0.00019077,2]
[389647076,1759767038032,-500.0,0.00019077,2]
[389647077,1759767038041,-500.0,0.00019077,2]
[389647078,1759767038051,-614.72069636,0.00019077,2]
[389647079,1759767038061,-500.0,0.00019077,2]
[389647080,1759767038073,-500.0,0.00019077,2]
[389647081,1759767038082,-500.0,0.00019077,2]
[389647082,1759767038091,-500.0,0.00019077,2]
[389647083,1759767038101,-500.0,0.00019077,2]
[389647084,1759767038111,-500.0,0.00019077,2]
[389647085,1759767038121,-316.42228026,0.00019077,2]
[389647086,1759767038130,-500.0,0.00019077,2]
[389647087,1759767038140,-500.0,0.00019077,2]
[389647088,1759767038149,-528.94661314,0.00019077,2]
[389647089,1759767038159,-200.0,0.00019077,2]
[389647090,1759767038169,-500.0,0.00019077,2]
[389647091,1759767038178,-500.0,0.00019077,2]
[389647092,1759767038188,-500.0,0.00019077,2]
[389647093,1759767038197,-500.0,0.00019077,2]
[389647094,1759767038207,-500.0,0.00019077,2]
[389647095,1759767038216,-500.0,0.00019077,2]
[389647096,1759767038226,-500.0,0.00019077,2]
[389647097,1759767038235,-500.0,0.00019077,2]
[389647098,1759767038245,-500.0,0.00019077,2]
[389647099,1759767038255,-500.0,0.00019077,2]
[389647100,1759767038264,-500.0,0.00019077,2]
[389647101,1759767038274,-500.0,0.00019077,2]
[389647102,1759767038284,-500.0,0.00019077,2]
[389647103,1759767038294,-500.0,0.00019077,2]
[389647104,1759767038305,-500.0,0.00019077,2]
[389647105,1759767038317,-500.0,0.00019077,2]
[389647106,1759767038327,-500.0,0.00019077,2]
[389647107,1759767038337,-500.0,0.00019077,2]
[389647108,1759767038347,-500.0,0.00019077,2]
[389647109,1759767038356,-500.0,0.00019077,2]
[389647110,1759767038367,-557.17805745,0.00019077,2]
[389647111,1759767038376,-500.0,0.00019077,2]
[389647112,1759767038386,-362.2715536,0.00019077,2]
[389647113,1759767038395,-500.0,0.00019077,2]
[389647114,1759767038405,-500.0,0.00019077,2]
[389647115,1759767038415,-500.0,0.00019077,2]
[389647116,1759767038424,-273.13926959,0.00019077,2]
[389647117,1759767038433,-500.0,0.00019077,2]
[389647118,1759767038443,-500.0,0.00019077,2]
[389647119,1759767038452,-500.0,0.00019077,2]
[389647120,1759767038461,-500.0,0.00019077,2]
[389647121,1759767038471,-500.0,0.00019077,2]
[389647122,1759767038480,-532.47661463,0.00019077,2]
[389647123,1759767038490,-500.0,0.00019077,2]
[389647124,1759767038499,-500.0,0.00019077,2]
[389647125,1759767038509,-500.0,0.00019077,2]
[389647126,1759767038518,-500.0,0.00019077,2]
[389647127,1759767038527,-500.0,0.00019077,2]
[389647128,1759767038537,-500.0,0.00019077,2]
[389647129,1759767038547,-453.53137971,0.00019077,2]
[389647130,1759767038558,-500.0,0.00019077,2]
[389647131,1759767038567,-500.0,0.00019077,2]
[389647132,1759767038577,-500.0,0.00019077,2]
[389647133,1759767038586,-500.0,0.00019077,2]
[389647134,1759767038595,-500.0,0.00019077,2]
[389647135,1759767038605,-500.0,0.00019077,2]
[389647136,1759767038614,-500.0,0.00019077,2]
[389647137,1759767038624,-500.0,0.00019077,2]
[389647138,1759767038633,-285925.85564453,0.00019078,2]
[389647139,1759767038643,-489.76,0.00019168,3]
[389647140,1759767038652,-300.0,0.00019176,2]
[389647141,1759767038661,-1200.0,0.00019177,2]
[389647142,1759767038671,-539.31,0.00019178,2]
[389647143,1759767038680,-500.0,0.00019178,2]
[389647144,1759767038689,-639.3925476,0.00019178,2]
[389647145,1759767038698,-500.0,0.00019178,2]
[389647146,1759767038708,-233.99318465,0.00019178,2]
[389647147,1759767038717,-500.0,0.00019178,2]
[389647148,1759767038727,-460.0,0.00019178,2]
[389647149,1759767038735,-500.0,0.00019178,2]
[389647150,1759767038745,-500.0,0.00019178,2]
[389647151,1759767038754,-660.28,0.00019178,2]
[389647152,1759767038763,-500.0,0.00019178,2]
[389647153,1759767038773,-500.0,0.00019178,2]
[389647154,1759767038782,-500.0,0.00019178,2]
[389647155,1759767038792,-500.0,0.00019178,2]
[389647156,1759767038801,-500.0,0.00019178,2]
[389647157,1759767038811,-500.0,0.00019178,2]
[389647158,1759767038820,-500.0,0.00019178,2]
[389647159,1759767038829,-500.0,0.00019178,2]
[389647160,1759767038839,-500.0,0.00019178,2]
[389647161,1759767038848,-500.0,0.00019178,2]
[389647162,1759767038857,-500.0,0.00019178,2]
[389647163,1759767038866,-715.95,0.00019178,2]
[389647164,1759767038876,-500.0,0.00019178,2]
[389647165,1759767038885,-500.0,0.00019178,2]
[389647166,1759767038894,-500.0,0.00019178,2]
[389647167,1759767038904,-500.0,0.00019178,2]
[389647168,1759767038913,-500.0,0.00019178,2]
[389647169,1759767038923,-500.0,0.00019178,2]
[389647170,1759767038932,-500.0,0.00019178,2]
[389647171,1759767038941,-500.0,0.00019178,2]
[389647172,1759767038951,-500.0,0.00019178,2]
[389647173,1759767038959,-1298.82,0.00019178,2]
[389647174,1759767038968,-1584.28,0.00019178,2]
[389647175,1759767038977,-500.0,0.00019178,2]
[389647176,1759767038986,-500.0,0.00019178,2]
[389647177,1759767038996,-500.0,0.00019178,2]
[389647178,1759767039005,-500.0,0.00019178,2]
[389647179,1759767039015,-500.0,0.00019178,2]
[389647180,1759767039025,-192.78529294,0.00019178,2]
[389647181,1759767039037,-328.46158303,0.00019178,2]
[389647182,1759767039046,-500.0,0.00019178,2]
[389647183,1759767039056,-244.93255156,0.00019178,2]
[389647184,1759767039069,-500.0,0.00019178,2]
[389647185,1759767039079,-500.0,0.00019178,2]
[389647186,1759767039089,-500.0,0.00019178,2]
[389647187,1759767039099,-500.0,0.00019178,2]
[389647188,1759767039111,-500.0,0.00019178,2]
[389647189,1759767039121,-500.0,0.00019178,2]
[389647190,1759767039132,-500.0,0.00019178,2]
[389647191,1759767039142,-156.87135269,0.00019178,2]
[389647192,1759767039152,-500.0,0.00019178,2]
[389647193,1759767039162,-500.0,0.00019178,2]
[389647194,1759767039172,-642.98158678,0.00019178,2]
[389647195,1759767039182,-500.0,0.00019178,2]
[389647196,1759767039192,-539.07407112,0.00019178,2]
[389647197,1759767039202,-337.53503601,0.00019178,2]
[389647198,1759767039212,-500.0,0.00019178,2]
[389647199,1759767039222,-500.0,0.00019178,2]
[389647200,1759767039233,-500.0,0.00019178,2]
[389647201,1759767039243,-1201.45,0.00019178,2]
[389647202,1759767039253,-500.0,0.00019178,2]
[389647203,1759767039262,-423.62767129,0.00019178,2]
[389647204,1759767039272,-500.0,0.00019178,2]
[389647205,1759767039282,-500.0,0.00019178,2]
[389647206,1759767039292,-500.0,0.00019178,2]
[389647207,1759767039302,-500.0,0.00019178,2]
[389647208,1759767039311,-500.0,0.00019178,2]
[389647209,1759767039321,-500.0,0.00019178,2]
[389647210,1759767039331,-500.0,0.00019178,2]
[389647211,1759767039340,-500.0,0.00019178,2]
[389647212,1759767039349,-209.27,0.00019178,2]
[389647213,1759767039358,-500.0,0.00019178,2]
[389647214,1759767039367,-500.0,0.00019178,2]
[389647215,1759767039377,-500.0,0.00019178,2]
[389647216,1759767039387,-500.0,0.00019178,2]
[389647217,1759767039396,-500.0,0.00019178,2]
[389647218,1759767039406,-500.0,0.00019178,2]
[389647219,1759767039416,-1059.46,0.00019178,2]
[389647220,1759767039426,-500.0,0.00019178,2]
[389647221,1759767039436,-500.0,0.00019178,2]
[389647222,1759767039446,-500.0,0.00019178,2]
[389647223,1759767039456,-500.0,0.00019178,2]
[389647224,1759767039465,-500.0,0.00019178,2]
[389647225,1759767039474,-500.0,0.00019178,2]
[389647226,1759767039484,-500.0,0.00019178,2]
[389647227,1759767039493,-500.0,0.00019178,2]
[389647228,1759767039679,-500.0,0.00019178,2]
[389647229,1759767039689,-1068.08,0.00019178,2]
[389647230,1759767039699,-500.0,0.00019178,2]
[389647232,1759767039708,-500.0,0.00019178,2]
[389647234,1759767039718,-500.0,0.00019178,2]
[389647236,1759767039727,-500.0,0.00019178,2]
[389647239,1759767039737,-500.0,0.00019178,2]
[389647242,1759767039756,-579.79479494,0.00019178,2]
[389647244,1759767039767,-500.0,0.00019178,2]
[389647246,1759767039778,-500.0,0.00019178,2]
[389647248,1759767039788,-500.0,0.00019178,2]
[389647250,1759767039798,-564.81,0.00019178,2]
[389647252,1759767039809,-500.0,0.00019178,2]
[389647254,1759767039819,-500.0,0.00019178,2]
[389647256,1759767039829,-500.0,0.00019178,2]
[389647258,1759767039839,-500.0,0.00019178,2]
[389647260,1759767039849,-478.22477885,0.00019178,2]
[389647262,1759767039859,-500.0,0.00019178,2]
[389647264,1759767039868,-500.0,0.00019178,2]
[389647266,1759767039878,-1075.47,0.00019178,2]
[389647267,1759767039888,-500.0,0.00019178,2]
[389647268,1759767039898,-500.0,0.00019178,2]
[389647269,1759767039907,-500.0,0.00019178,2]
[389647270,1759767039917,-500.0,0.00019178,2]
[389647271,1759767039927,-500.0,0.00019178,2]
[389647272,1759767039938,-500.0,0.00019178,2]
[389647273,1759767039947,-500.0,0.00019178,2]
[389647274,1759767039957,-500.0,0.00019178,2]
[389647275,1759767039967,-500.0,0.00019178,2]
[389647276,1759767039976,-500.0,0.00019178,2]
[389647277,1759767039986,-500.0,0.00019178,2]
[389647278,1759767039995,-500.0,0.00019178,2]
[389647279,1759767040005,-500.0,0.00019178,2]
[389647280,1759767040014,-500.0,0.00019178,2]
[389647281,1759767040026,-500.0,0.00019178,2]
[389647282,1759767040039,-500.0,0.00019178,2]
[389647283,1759767040049,-1132.92,0.00019178,2]
[389647284,1759767040058,-500.0,0.00019178,2]
[389647285,1759767040071,-500.0,0.00019178,2]
[389647286,1759767040080,-500.0,0.00019178,2]
[389647287,1759767040089,-500.0,0.00019178,2]
[389647288,1759767040100,-500.0,0.00019178,2]
[389647289,1759767040111,-500.0,0.00019178,2]
[389647290,1759767040120,-500.0,0.00019178,2]
[389647291,1759767040129,-500.0,0.00019178,2]
[389647292,1759767040139,-1188.26,0.00019178,2]
[389647293,1759767040149,-500.0,0.00019178,2]
[389647294,1759767040159,-874.79,0.00019178,2]
[389647295,1759767040169,-500.0,0.00019178,2]
[389647298,1759767040178,-500.0,0.00019178,2]
[389647299,1759767040188,-500.0,0.00019178,2]
[389647300,1759767040197,-1743.05,0.00019178,2]
[389647301,1759767040207,-590.46,0.00019178,2]
[389647302,1759767040216,-1342.72,0.00019178,2]
[389647303,1759767040226,-500.0,0.00019178,2]
[389647304,1759767040236,-1770.57,0.00019178,2]
[389647305,1759767040245,-6976.32,0.00019178,2]
[389647306,1759767040255,-801.38,0.00019178,2]
[389647307,1759767040264,-3293.15,0.00019178,2]
[389647308,1759767040273,-520.52,0.00019178,2]
[389647309,1759767040283,-566.39,0.00019178,2]
[389647310,1759767040293,-500.0,0.00019178,2]
[389647311,1759767040302,-500.0,0.00019178,2]
[389647312,1759767040312,-1020.43,0.00019178,2]
[389647313,1759767040322,-500.0,0.00019178,2]
[389647314,1759767040331,-500.0,0.00019178,2]
[389647315,1759767040341,-534.37,0.00019178,2]
[389647316,1759767040350,-500.0,0.00019178,2]
[389647317,1759767040359,-215.88,0.00019178,2]
[389647318,1759767040369,-612.54,0.00019178,2]
[389647319,1759767040382,-500.0,0.00019178,2]
[389647320,1759767040392,-500.0,0.00019178,2]
[389647321,1759767040402,-665.81,0.00019178,2]
[389647322,1759767040411,-500.0,0.00019178,2]
[389647323,1759767040421,-4890.47,0.00019178,2]
[389647324,1759767040431,-988.39,0.00019178,2]
[389647325,1759767040442,-3211.78,0.00019178,2]
[389647326,1759767040452,-500.0,0.00019178,2]
[389647327,1759767040461,-500.0,0.00019178,2]
[389647328,1759767040471,-500.0,0.00019178,2]
[389647329,1759767040481,-504.68,0.00019178,2]
[389647330,1759767040491,-1164.13,0.00019178,2]
[389647331,1759767040501,-1461.14,0.00019178,2]
[389647332,1759767040511,-614.43,0.00019178,2]
[389647333,1759767040520,-500.0,0.00019178,2]
[389647334,1759767040529,-873.82,0.00019178,2]
[389647335,1759767040539,-500.0,0.00019178,2]
[389647336,1759767040549,-1756.41,0.00019178,2]
[389647337,1759767040559,-548.11,0.00019178,2]
[389647338,1759767040570,-500.0,0.00019178,2]
[389647339,1759767040580,-741.0,0.00019178,2]
[389647340,1759767040590,-500.0,0.00019178,2]
[389647341,1759767040599,-1292.37,0.00019178,2]
[389647342,1759767040609,-1057.32,0.00019178,2]
[389647343,1759767040618,-1192.5,0.00019178,2]
[389647344,1759767040627,-500.0,0.00019178,2]
[389647345,1759767040637,-2502.01,0.00019178,2]
[389647346,1759767040647,-500.0,0.00019178,2]
[389647347,1759767040656,-500.0,0.00019178,2]
[389647348,1759767040667,-735.61,0.00019178,2]
[389647349,1759767040677,-500.0,0.00019178,2]
[389647350,1759767040687,-889.67,0.00019178,2]
[389647351,1759767040697,-500.0,0.00019178,2]
[389647352,1759767040707,-4247.91,0.00019178,2]
[389647353,1759767040716,-500.0,0.00019178,2]
[389647354,1759767040726,-1077.11,0.00019178,2]
[389647355,1759767040736,-10027.14,0.00019178,2]
[389647356,1759767040745,-500.0,0.00019178,2]
[389647357,1759767040755,-3687.49,0.00019178,2]
[389647358,1759767040764,-500.0,0.00019178,2]
[389647359,1759767040774,-500.0,0.00019178,2]
[389647360,1759767040784,-743.19,0.00019178,2]
[389647361,1759767040793,-500.0,0.00019178,2]
[389647362,1759767040803,-1944.29,0.00019178,2]
[389647363,1759767040815,-559.02,0.00019178,2]
[389647364,1759767040824,-500.0,0.00019178,2]
[389647365,1759767040836,-697.83,0.00019178,2]
[389647366,1759767040845,-500.0,0.00019178,2]
[389647367,1759767040855,-500.0,0.00019178,2]
[389647368,1759767040864,-580.0,0.00019178,2]
[389647369,1759767040874,-500.0,0.00019178,2]
[389647370,1759767040884,-619.74,0.00019178,2]
[389647371,1759767040893,-500.0,0.00019178,2]
[389647372,1759767040903,-500.0,0.00019178,2]
[389647373,1759767040913,-500.0,0.00019178,2]
[389647374,1759767040923,-860.18,0.00019178,2]
[389647375,1759767040932,-500.0,0.00019178,2]
[389647376,1759767040942,-500.0,0.00019178,2]
[389647377,1759767040951,-500.0,0.00019178,2]
[389647378,1759767040961,-1426.97,0.00019178,2]
[389647379,1759767040971,-660.26,0.00019178,2]
[389647380,1759767040981,-1691.79,0.00019178,2]
[389647381,1759767040991,-551.82,0.00019178,2]
[389647382,1759767041000,-500.0,0.00019178,2]
[389647383,1759767041009,-1454.51,0.00019178,2]
[389647384,1759767041019,-10078.61,0.00019178,2]
[389647385,1759767041033,-500.0,0.00019178,2]
[389647386,1759767041043,-500.0,0.00019178,2]
[389647387,1759767041053,-6117.42,0.00019178,2]
[389647388,1759767041066,-500.0,0.00019178,2]
[389647389,1759767041075,-2736.04,0.00019178,2]
[389647390,1759767041085,-500.0,0.00019178,2]
[389647391,1759767041095,-500.0,0.00019178,2]
[389647392,1759767041108,-470.38097828,0.00019352,2]
[389647393,1759767041118,-539.31,0.00019452,2]
[389647394,1759767041128,-500.0,0.00019452,2]
[389647395,1759767041138,-500.0,0.00019452,2]
[389647396,1759767041148,-500.0,0.00019452,2]
[389647397,1759767041157,-500.0,0.00019452,2]
[389647398,1759767041167,-500.0,0.00019452,2]
[389647399,1759767041177,-660.28,0.00019452,2]
[389647400,1759767041187,-500.0,0.00019452,2]
[389647401,1759767041197,-500.0,0.00019452,2]
[389647402,1759767041207,-500.0,0.00019452,2]
[389647403,1759767041217,-500.0,0.00019452,2]
[389647404,1759767041226,-500.0,0.00019452,2]
[389647405,1759767041235,-500.0,0.00019452,2]
[389647406,1759767041245,-500.0,0.00019452,2]
[389647407,1759767041254,-500.0,0.00019452,2]
[389647408,1759767041264,-500.0,0.00019452,2]
[389647409,1759767041275,-500.0,0.00019452,2]
[389647410,1759767041284,-500.0,0.00019452,2]
[389647411,1759767041295,-715.95,0.00019452,2]
[389647412,1759767041306,-500.0,0.00019452,2]
[389647413,1759767041316,-500.0,0.00019452,2]
[389647414,1759767041326,-500.0,0.00019452,2]
[389647415,1759767041336,-500.0,0.00019452,2]
[389647416,1759767041345,-500.0,0.00019452,2]
[389647417,1759767041355,-500.0,0.00019452,2]
[389647418,1759767041364,-500.0,0.00019452,2]
[389647419,1759767041374,-500.0,0.00019452,2]
[389647420,1759767041384,-500.0,0.00019452,2]
[389647421,1759767041395,-1298.82,0.00019452,2]
[389647422,1759767041405,-1584.28,0.00019452,2]
[389647423,1759767041415,-500.0,0.00019452,2]
[389647424,1759767041424,-500.0,0.00019452,2]
[389647425,1759767041434,-500.0,0.00019452,2]
[389647426,1759767041444,-500.0,0.00019452,2]
[389647427,1759767041454,-500.0,0.00019452,2]
[389647428,1759767041465,-500.0,0.00019452,2]
[389647429,1759767041474,-500.0,0.00019452,2]
[389647430,1759767041483,-500.0,0.00019452,2]
[389647431,1759767041493,-440.0,0.00019452,2]
[389647432,1759767041502,-500.0,0.00019452,2]
[389647433,1759767041512,-500.0,0.00019452,2]
[389647434,1759767041521,-500.0,0.00019452,2]
[389647435,1759767041530,-500.0,0.00019452,2]
[389647436,1759767041539,-500.0,0.00019452,2]
[389647437,1759767041548,-500.0,0.00019452,2]
[389647438,1759767041558,-500.0,0.00019452,2]
[389647439,1759767041568,-500.0,0.00019452,2]
[389647440,1759767041578,-500.0,0.00019452,2]
[389647441,1759767041587,-500.0,0.00019452,2]
[389647442,1759767041598,-1201.45,0.00019452,2]
[389647443,1759767041607,-500.0,0.00019452,2]
[389647444,1759767041617,-500.0,0.00019452,2]
[389647445,1759767041626,-500.0,0.00019452,2]
[389647446,1759767041636,-500.0,0.00019452,2]
[389647447,1759767041646,-500.0,0.00019452,2]
[389647448,1759767041656,-500.0,0.00019452,2]
[389647449,1759767041666,-500.0,0.00019452,2]
[389647450,1759767041675,-500.0,0.00019452,2]
[389647451,1759767041685,-500.0,0.00019452,2]
[389647452,1759767041694,-500.0,0.00019452,2]
[389647453,1759767041704,-500.0,0.00019452,2]
[389647454,1759767041713,-500.0,0.00019452,2]
[389647455,1759767041723,-500.0,0.00019452,2]
[389647456,1759767041733,-500.0,0.00019452,2]
[389647457,1759767041742,-500.0,0.00019452,2]
[389647458,1759767041752,-1059.46,0.00019452,2]
[389647459,1759767041762,-500.0,0.00019452,2]
[389647460,1759767041772,-323.71410661,0.00019452,2]
[389647461,1759767041782,-500.0,0.00019452,2]
[389647462,1759767041792,-500.0,0.00019452,2]
[389647463,1759767041801,-500.0,0.00019452,2]
[389647464,1759767041811,-500.0,0.00019452,2]
[389647465,1759767041821,-500.0,0.00019452,2]
[389647466,1759767041832,-500.0,0.00019452,2]
[389647467,1759767041841,-500.0,0.00019452,2]
[389647468,1759767041851,-1068.08,0.00019452,2]
[389647469,1759767041861,-486.06,0.00019452,2]
[389647470,1759767041871,-254.33886898,0.00019452,2]
[389647471,1759767041880,-500.0,0.00019452,2]
[389647472,1759767041890,-500.0,0.00019452,2]
[389647473,1759767041900,-500.0,0.00019452,2]
[389647474,1759767041910,-500.0,0.00019452,2]
[389647475,1759767041919,-500.0,0.00019452,2]
[389647476,1759767041929,-500.0,0.00019452,2]
[389647477,1759767041939,-564.81,0.00019452,2]
[389647478,1759767041949,-500.0,0.00019452,2]
[389647479,1759767041958,-500.0,0.00019452,2]
[389647480,1759767041968,-500.0,0.00019452,2]
[389647481,1759767041978,-500.0,0.00019452,2]
[389647482,1759767041988,-500.0,0.00019452,2]
[389647483,1759767041998,-500.0,0.00019452,2]
[389647484,1759767042008,-1075.47,0.00019452,2]
[389647485,1759767042018,-500.0,0.00019452,2]
[389647486,1759767042030,-500.0,0.00019452,2]
[389647487,1759767042039,-500.0,0.00019452,2]
[389647488,1759767042050,-500.0,0.00019452,2]
[389647489,1759767042059,-500.0,0.00019452,2]
[389647490,1759767042070,-451.79013392,0.00019452,2]
[389647491,1759767042079,-500.0,0.00019452,2]
[389647492,1759767042089,-500.0,0.00019452,2]
[389647493,1759767042098,-373.56858848,0.00019452,2]
[389647494,1759767042109,-500.0,0.00019452,2]
[389647495,1759767042119,-500.0,0.00019452,2]
[389647496,1759767042128,-500.0,0.00019452,2]
[389647497,1759767042138,-500.0,0.00019452,2]
[389647498,1759767042147,-500.0,0.00019452,2]
[389647499,1759767042157,-500.0,0.00019452,2]
[389647500,1759767042166,-500.0,0.00019452,2]
[389647501,1759767042176,-1132.92,0.00019452,2]
[389647502,1759767042185,-500.0,0.00019452,2]
[389647503,1759767042195,-500.0,0.00019452,2]
[389647504,1759767042204,-500.0,0.00019452,2]
[389647505,1759767042213,-500.0,0.00019452,2]
[389647506,1759767042223,-500.0,0.00019452,2]
[389647507,1759767042232,-500.0,0.00019452,2]
[389647508,1759767042243,-500.0,0.00019452,2]
[389647509,1759767042253,-500.0,0.00019452,2]
[389647510,1759767042263,-1188.26,0.00019452,2]
[389647511,1759767042272,-500.0,0.00019452,2]
[389647512,1759767042283,-874.79,0.00019452,2]
[389647513,1759767042292,-500.0,0.00019452,2]
[389647514,1759767042301,-500.0,0.00019452,2]
[389647515,1759767042312,-500.0,0.00019452,2]
[389647516,1759767042322,-1743.05,0.00019452,2]
[389647517,1759767042331,-590.46,0.00019452,2]
[389647518,1759767042341,-1342.72,0.00019452,2]
[389647519,1759767042351,-500.0,0.00019452,2]
[389647520,1759767042362,-1770.57,0.00019452,2]
[389647521,1759767042372,-6976.32,0.00019452,2]
[389647522,1759767042381,-801.38,0.00019452,2]
[389647523,1759767042391,-3293.15,0.00019452,2]
[389647524,1759767042401,-520.52,0.00019452,2]
[389647525,1759767042410,-566.39,0.00019452,2]
[389647526,1759767042420,-500.0,0.00019452,2]
[389647527,1759767042429,-500.0,0.00019452,2]
[389647528,1759767042439,-1020.43,0.00019452,2]
[389647529,1759767042448,-500.0,0.00019452,2]
[389647530,1759767042457,-534.37,0.00019452,2]
[389647531,1759767042466,-500.0,0.00019452,2]
[389647533,1759767042476,-612.54,0.00019452,2]
[389647534,1759767042486,-500.0,0.00019452,2]
[389647535,1759767042495,-500.0,0.00019452,2]
[389647537,1759767042505,-665.81,0.00019452,2]
[389647539,1759767042514,-500.0,0.00019452,2]
[389647541,1759767042523,-4890.47,0.00019452,2]
[389647543,1759767042532,-988.39,0.00019452,2]
[389647545,1759767042542,-3211.78,0.00019452,2]
[389647547,1759767042552,-500.0,0.00019452,2]
[389647549,1759767042562,-500.0,0.00019452,2]
[389647551,1759767042572,-500.0,0.00019452,2]
[389647552,1759767042581,-504.68,0.00019452,2]
[389647553,1759767042591,-1164.13,0.00019452,2]
[389647554,1759767042601,-1461.14,0.00019452,2]
[389647555,1759767042611,-614.43,0.00019452,2]
[389647556,1759767042621,-500.0,0.00019452,2]
[389647558,1759767042630,-873.82,0.00019452,2]
[389647559,1759767042640,-500.0,0.00019452,2]
[389647560,1759767042650,-1756.41,0.00019452,2]
[389647561,1759767042660,-548.11,0.00019452,2]
[389647562,1759767042669,-500.0,0.00019452,2]
[389647563,1759767042679,-741.0,0.00019452,2]
[389647564,1759767042689,-500.0,0.00019452,2]
[389647565,1759767042698,-1292.37,0.00019452,2]
[389647566,1759767042707,-1057.32,0.00019452,2]
[389647567,1759767042716,-1192.5,0.00019452,2]
[389647568,1759767042726,-500.0,0.00019452,2]
[389647569,1759767042735,-2502.01,0.00019452,2]
[389647570,1759767042745,-500.0,0.00019452,2]
[389647571,1759767042754,-373.9805908,0.00019452,2]
[389647572,1759767042763,-735.61,0.00019452,2]
[389647573,1759767042772,-500.0,0.00019452,2]
[389647574,1759767042782,-889.67,0.00019452,2]
[389647575,1759767042791,-500.0,0.00019452,2]
[389647576,1759767042801,-4247.91,0.00019452,2]
[389647577,1759767042810,-500.0,0.00019452,2]
[389647578,1759767042820,-1077.11,0.00019452,2]
[389647579,1759767042830,-10027.14,0.00019452,2]
[389647580,1759767042839,-500.0,0.00019452,2]
[389647581,1759767042848,-3687.49,0.00019452,2]
[389647582,1759767042857,-500.0,0.00019452,2]
[389647583,1759767042867,-500.0,0.00019452,2]
[389647584,1759767042877,-743.19,0.00019452,2]